bitfinex-derivatives/quotes_BTCF0:USTF0_20250724
["timestamp","ask_amount","ask_price","bid_price","bid_amount"]
[1753354150134,2.0508348,118400.0,118390.0,0.1688436]
[1753354150334,2.06804831,118400.0,118390.0,0.1688436]
[1753354150541,2.39908784,118400.0,118390.0,0.1688436]
[1753354151445,2.06804831,118400.0,118390.0,0.1688436]
[1753354151646,0.4473336,118390.0,118380.0,0.2532732]
[1753354151842,1.52550313,118390.0,118380.0,0.2110593]
[1753354152151,1.21168629,118390.0,118380.0,0.2110593]
[1753354157148,1.54272582,118390.0,118380.0,0.2110593]
[1753354158155,1.21168629,118390.0,118380.0,0.2110593]
[1753354158951,1.21168629,118390.0,118370.0,0.14553931]
[1753354159151,1.4815178,118380.0,118370.0,0.62218291]
[1753354159352,1.86874049,118380.0,118370.0,0.62218291]
[1753354162259,1.69988269,118380.0,118370.0,0.62218291]
[1753354164959,1.87391371,118380.0,118370.0,0.62218291]
[1753354165962,1.86873809,118380.0,118370.0,0.62218291]
[1753354171158,1.8515154,118380.0,118370.0,0.62218291]
[1753354171358,1.67814,118380.0,118370.0,0.90488619]
[1753354171667,1.67814,118380.0,118370.0,1.03276619]
[1753354171866,1.8469972,118380.0,118370.0,1.03276619]
[1753354172069,1.67814,118380.0,118370.0,1.03276619]
[1753354172663,1.8469972,118380.0,118370.0,1.03276619]
[1753354173165,1.67814,118380.0,118370.0,1.03276619]
[1753354173558,1.8469972,118380.0,118370.0,1.03276619]
[1753354174072,1.67814,118380.0,118370.0,1.03276619]
[1753354176367,1.69619183,118380.0,118370.0,1.03276619]
[1753354177372,1.07367183,118380.0,118370.0,1.03276619]
[1753354177564,1.69471183,118380.0,118370.0,1.03276619]
[1753354178165,1.33391183,118380.0,118370.0,1.03276619]
[1753354179475,1.33391183,118380.0,118370.0,0.75006291]
[1753354179675,1.50276913,118380.0,118370.0,1.03276619]
[1753354180073,1.50276913,118380.0,118370.0,1.11045619]
[1753354180670,1.33391183,118380.0,118370.0,1.11045619]
[1753354180871,1.50276903,118380.0,118370.0,1.11045619]
[1753354181177,1.50276903,118380.0,118370.0,1.15798619]
[1753354182376,1.33391183,118380.0,118370.0,1.56431796]
[1753354182567,1.33391183,118380.0,118370.0,1.20351796]
[1753354185476,1.33391183,118380.0,118370.0,1.15798619]
[1753354185673,1.33391183,118380.0,118370.0,0.87528291]
[1753354185866,1.33391183,118380.0,118370.0,1.15798619]
[1753354186377,1.33391183,118380.0,118370.0,1.22756619]
[1753354187077,0.71287183,118380.0,118370.0,1.22756619]
[1753354187273,0.95979183,118380.0,118370.0,1.22756619]
[1753354187779,0.01805183,118380.0,118370.0,1.22756619]
[1753354187971,1.16475,118390.0,118380.0,0.2967371]
[1753354188173,1.5429327,118390.0,118380.0,0.77424038]
[1753354189678,1.1829327,118390.0,118380.0,0.77424038]
[1753354189978,1.2229327,118390.0,118380.0,0.77424038]
[1753354190276,1.50475,118390.0,118380.0,0.77424038]
[1753354190871,1.14395,118390.0,118380.0,1.13504038]
[1753354191477,0.93488,118390.0,118380.0,1.13504038]
[1753354191977,1.29488,118390.0,118380.0,1.13504038]
[1753354192478,0.66414,118390.0,118380.0,2.12072038]
[1753354192677,0.56703,118390.0,118380.0,2.12072038]
[1753354192878,0.66796,118390.0,118380.0,1.2223371]
[1753354193076,1.49846645,118390.0,118380.0,0.6667371]
[1753354193379,1.83903801,118390.0,118380.0,0.1788571]
[1753354193577,1.95289849,118390.0,118380.0,0.1788571]
[1753354193976,2.12174129,118390.0,118380.0,0.1808571]
[1753354194181,1.83903801,118390.0,118380.0,0.1808571]
[1753354194376,2.12174129,118390.0,118380.0,0.1808571]
[1753354194573,2.12174129,118390.0,118380.0,0.1798571]
[1753354194773,2.12174129,118390.0,118380.0,0.1788571]
[1753354194974,2.12174129,118390.0,118380.0,0.5288571]
[1753354195180,2.12174129,118390.0,118380.0,0.1688571]
[1753354195477,2.12174129,118390.0,118380.0,0.5288571]
[1753354196381,2.12174129,118390.0,118380.0,0.5488571]
[1753354196783,2.12174129,118390.0,118380.0,0.5088571]
[1753354198282,1.83903801,118390.0,118380.0,0.5088571]
[1753354200089,0.31432,118380.0,118370.0,1.13713681]
[1753354200385,0.68432,118380.0,118370.0,1.49713681]
[1753354200685,0.68432,118380.0,118370.0,1.45159268]
[1753354200986,0.31432,118380.0,118370.0,1.45159268]
[1753354201481,0.94132,118390.0,118380.0,0.4807763]
[1753354201682,1.29132,118390.0,118380.0,1.50981731]
[1753354202486,1.4601621,118390.0,118380.0,1.22711403]
[1753354202783,1.4601621,118390.0,118380.0,1.14901731]
[1753354203182,1.29132,118390.0,118380.0,1.14901731]
[1753354204384,1.29132,118390.0,118380.0,1.50981731]
[1753354205179,0.66432,118390.0,118380.0,1.50981731]
[1753354205379,1.29132,118390.0,118380.0,1.50981731]
[1753354207179,1.4601617,118390.0,118380.0,0.80328403]
[1753354207380,1.4601617,118390.0,118380.0,1.08598731]
[1753354207682,1.4601617,118390.0,118380.0,1.44678731]
[1753354208282,1.29132,118390.0,118380.0,1.50981731]
[1753354210585,1.29132,118390.0,118380.0,1.22711403]
[1753354210797,1.29132,118390.0,118380.0,1.50981731]
[1753354211185,1.30915946,118390.0,118380.0,1.46427958]
[1753354215088,1.29132,118390.0,118380.0,1.46427958]
[1753354215981,1.29132,118390.0,118380.0,1.10347958]
[1753354216187,1.29132,118390.0,118380.0,1.46427958]
[1753354216791,1.31059094,118390.0,118380.0,1.46427958]
[1753354217592,1.30651094,118390.0,118380.0,1.46941482]
[1753354217894,1.28724,118390.0,118380.0,1.46941482]
[1753354218394,1.23617,118390.0,118380.0,1.46941482]
[1753354218593,1.23617,118390.0,118380.0,1.46427958]
[1753354218793,1.4050113,118390.0,118380.0,1.1815763]
[1753354218993,1.4050113,118390.0,118380.0,1.46427958]
[1753354219689,1.23617,118390.0,118380.0,1.46427958]
[1753354219893,1.4050111,118390.0,118380.0,1.46427958]
[1753354220395,1.23617,118390.0,118380.0,1.46427958]
[1753354221191,1.4050106,118390.0,118380.0,1.46427958]
[1753354221386,1.23617,118390.0,118380.0,1.46427958]
[1753354222595,1.4050104,118390.0,118380.0,1.46427958]
[1753354222991,1.23617,118390.0,118380.0,1.46427958]
[1753354226297,1.23617,118390.0,118380.0,1.1815763]
[1753354226493,1.23617,118390.0,118380.0,1.46427958]
[1753354227698,1.405011,118390.0,118380.0,1.27788958]
[1753354227897,1.405011,118390.0,118380.0,0.6343863]
[1753354228096,1.405011,118390.0,118380.0,0.91708958]
[1753354228097,1.23617,118390.0,118380.0,0.91708958]
[1753354228393,1.23617,118390.0,118380.0,1.35611958]
[1753354228593,1.23617,118390.0,118380.0,1.46336958]
[1753354228789,1.25545767,118390.0,118380.0,1.46336958]
[1753354229406,1.30377767,118390.0,118380.0,1.46336958]
[1753354229699,0.68493767,118390.0,118380.0,1.46336958]
[1753354229894,0.9284,118400.0,118390.0,0.4029106]
[1753354230090,0.58637246,118400.0,118390.0,2.12344388]
[1753354230296,0.83232,118410.0,118400.0,0.4811263]
[1753354230501,0.56280864,118410.0,118400.0,1.77733286]
[1753354230698,0.01928864,118410.0,118400.0,1.77733286]
[1753354231101,0.30948,118420.0,118410.0,0.2956319]
[1753354231295,0.6587586,118420.0,118410.0,2.09341518]
[1753354232094,0.8275561,118420.0,118410.0,1.98616518]
[1753354232306,0.8275561,118420.0,118410.0,1.54761518]
[1753354232701,0.6587586,118420.0,118410.0,1.90841518]
[1753354233005,0.6587586,118420.0,118410.0,1.67145518]
[1753354233200,0.6587586,118420.0,118410.0,2.03225518]
[1753354233409,0.6587586,118420.0,118410.0,1.7495519]
[1753354233611,0.6587586,118420.0,118410.0,1.67145518]
[1753354233916,1.4274775,118420.0,118410.0,1.41297518]
[1753354234108,1.25868,118420.0,118410.0,1.41297518]
[1753354234916,1.25868,118420.0,118410.0,1.47461518]
[1753354235218,1.25812,118420.0,118410.0,1.47461518]
[1753354239117,1.4269176,118420.0,118410.0,1.1919119]
[1753354239418,1.25812,118420.0,118410.0,1.47461518]
[1753354242417,1.25812,118420.0,118410.0,1.1919119]
[1753354242621,1.25812,118420.0,118410.0,1.47461518]
[1753354243926,1.4269175,118420.0,118410.0,1.36736518]
[1753354244718,1.4269175,118420.0,118410.0,1.28913518]
[1753354244925,2.08965726,118420.0,118410.0,0.1688119]
[1753354246025,1.80695398,118420.0,118410.0,0.1688119]
[1753354246227,2.08965726,118420.0,118410.0,0.1688119]
[1753354250723,1.80695398,118420.0,118410.0,0.1688119]
[1753354251628,1.7877175,118420.0,118410.0,0.1688119]
[1753354253832,0.00296362,118440.0,118430.0,0.05236]
[1753354254032,0.12793,118460.0,118450.0,0.20505]
[1753354254233,0.16342497,118480.0,118470.0,0.3737764]
[1753354254426,1.14903497,118480.0,118470.0,1.37807968]
[1753354254630,1.14903497,118480.0,118470.0,1.1409864]
[1753354254823,1.15204062,118480.0,118470.0,1.1409864]
[1753354255135,1.603456,118480.0,118470.0,0.5295264]
[1753354255435,1.15204062,118480.0,118470.0,0.5295264]
[1753354255729,1.14903497,118480.0,118470.0,0.89045968]
[1753354255933,1.14903497,118480.0,118470.0,1.12452968]
[1753354255934,2.31715497,118480.0,118470.0,1.12452968]
[1753354256236,2.49870497,118480.0,118470.0,1.12452968]
[1753354256535,2.49870497,118480.0,118470.0,1.14352968]
[1753354256735,2.66741707,118480.0,118470.0,0.8608264]
[1753354256928,2.49898497,118480.0,118470.0,0.8608264]
[1753354257134,2.66769707,118480.0,118470.0,0.8608264]
[1753354257436,2.49886497,118480.0,118470.0,0.8608264]
[1753354257635,2.50187608,118480.0,118470.0,0.8608264]
[1753354258136,2.43298,118480.0,118470.0,1.14352968]
[1753354258730,2.43298,118480.0,118470.0,0.8608264]
[1753354258933,2.43298,118480.0,118470.0,1.14352968]
[1753354259139,2.43298,118480.0,118470.0,0.8608264]
[1753354259328,2.6017721,118480.0,118470.0,0.8608264]
[1753354259529,2.95515843,118480.0,118470.0,0.5485264]
[1753354259725,2.95515843,118480.0,118470.0,0.1877264]
[1753354260939,2.95515843,118480.0,118470.0,0.1687264]
[1753354261137,0.5007163,118470.0,118460.0,0.6138991]
[1753354261434,1.59858788,118470.0,118460.0,0.1687405]
[1753354261641,3.0975246,118470.0,118460.0,0.1687405]
[1753354261938,3.38022788,118470.0,118460.0,0.1687405]
[1753354262139,2.7367646,118470.0,118460.0,0.1687405]
[1753354262339,0.5007306,118460.0,118450.0,0.5295429]
[1753354262636,1.11343388,118460.0,118450.0,0.5295429]
[1753354263542,1.11343388,118460.0,118450.0,0.1687429]
[1753354264243,1.72751388,118460.0,118450.0,0.1687429]
[1753354265641,0.1687548,118450.0,118440.0,0.7821691]
[1753354265839,1.11344808,118450.0,118440.0,0.6835769]
[1753354266041,1.13186481,118450.0,118440.0,0.529569]
[1753354266431,1.13186481,118450.0,118440.0,0.3608]
[1753354266635,1.13186481,118450.0,118440.0,0.529569]
[1753354267035,0.302549,118440.0,118430.0,0.63303878]
[1753354267237,1.73706228,118440.0,118430.0,0.75907878]
[1753354267437,1.73706228,118440.0,118430.0,0.5295721]
[1753354267743,1.75547974,118440.0,118430.0,0.5295721]
[1753354268244,1.75547974,118440.0,118430.0,0.1687721]
[1753354269144,1.14187974,118440.0,118430.0,0.1687721]
[1753354269346,1.75539974,118440.0,118430.0,0.1687721]
[1753354270946,1.14187974,118440.0,118430.0,0.1687721]
[1753354271246,1.75471974,118440.0,118430.0,0.1687721]
[1753354271743,1.73630228,118440.0,118430.0,0.1687721]
[1753354271948,1.75472143,118440.0,118430.0,0.1687721]
[1753354272248,1.73626228,118440.0,118430.0,0.1687721]
[1753354272547,1.75468146,118440.0,118430.0,0.1687721]
[1753354272741,1.73626228,118440.0,118430.0,0.5295721]
[1753354272943,1.7546827,118440.0,118430.0,0.1687721]
[1753354273246,1.73626228,118440.0,118430.0,0.1687721]
[1753354274949,1.12346228,118440.0,118430.0,0.1687721]
[1753354275147,1.73570228,118440.0,118430.0,0.1687721]
[1753354275350,1.73546228,118440.0,118430.0,0.1687721]
[1753354275547,1.75388444,118440.0,118430.0,0.1687721]
[1753354275945,0.3025633,118430.0,118420.0,0.9388109]
[1753354276147,0.3025633,118430.0,118420.0,1.0388109]
[1753354276148,0.8707733,118430.0,118420.0,1.0388109]
[1753354277238,1.15347658,118430.0,118420.0,0.4608]
[1753354277442,0.5007876,118420.0,118410.0,0.3792499]
[1753354277743,0.5007876,118420.0,118410.0,0.3370471]
[1753354277744,2.91277088,118420.0,118410.0,0.3370471]
[1753354278356,2.0185476,118420.0,118410.0,0.4671271]
[1753354278543,2.0185476,118420.0,118410.0,1.18934038]
[1753354278744,2.6305076,118420.0,118410.0,1.18934038]
[1753354279353,2.6305076,118420.0,118410.0,0.9066371]
[1753354280454,2.0185476,118420.0,118410.0,0.9066371]
[1753354281049,2.6303076,118420.0,118410.0,0.9066371]
[1753354281448,2.0185476,118420.0,118410.0,0.9066371]
[1753354281761,2.6303076,118420.0,118410.0,0.9066371]
[1753354282353,2.63335228,118420.0,118410.0,0.9066371]
[1753354288052,2.69998395,118420.0,118410.0,0.9066371]
[1753354291652,2.71849226,118420.0,118410.0,0.9066371]
[1753354294560,2.71673226,118420.0,118410.0,0.9066371]
[1753354294760,2.10673226,118420.0,118410.0,0.9066371]
[1753354294960,2.71673226,118420.0,118410.0,0.9066371]
[1753354296364,2.10673226,118420.0,118410.0,0.9066371]
[1753354296566,2.71673226,118420.0,118410.0,0.9066371]
[1753354297063,2.10673226,118420.0,118410.0,0.9066371]
[1753354297259,2.71673226,118420.0,118410.0,0.9066371]
[1753354297866,2.99943554,118420.0,118410.0,0.9066371]
[1753354300667,2.71673226,118420.0,118410.0,0.9066371]
[1753354303165,2.74173226,118420.0,118410.0,0.9066371]
[1753354303873,3.02443554,118420.0,118410.0,0.9066371]
[1753354304068,2.41443554,118420.0,118410.0,0.9066371]
[1753354304264,3.02439554,118420.0,118410.0,0.9066371]
[1753354305071,2.74169226,118420.0,118410.0,0.9066371]
[1753354305263,3.02439554,118420.0,118410.0,0.9066371]
[1753354305566,3.02439554,118420.0,118410.0,0.8966371]
[1753354306669,3.02439554,118420.0,118410.0,0.3608]
[1753354308775,0.4955418,118410.0,118400.0,0.786503]
[1753354308979,1.76667339,118410.0,118400.0,0.529623]
[1753354309971,1.76667339,118410.0,118400.0,0.607843]
[1753354310170,1.76667339,118410.0,118400.0,0.655273]
[1753354310376,1.48397011,118410.0,118400.0,0.655273]
[1753354310579,1.76667339,118410.0,118400.0,0.732113]
[1753354310770,1.76667339,118410.0,118400.0,0.786503]
[1753354310970,1.76667339,118410.0,118400.0,0.856603]
[1753354311668,1.76667339,118410.0,118400.0,0.529623]
[1753354312268,1.76667339,118410.0,118400.0,0.607843]
[1753354313271,1.76667339,118410.0,118400.0,0.655273]
[1753354313973,1.76667339,118410.0,118400.0,0.685273]
[1753354316076,1.79167339,118410.0,118400.0,0.685273]
[1753354316482,1.79167339,118410.0,118400.0,0.3608]
[1753354317375,1.79167339,118410.0,118400.0,0.5296261]
[1753354317884,1.79167339,118410.0,118400.0,0.3608]
[1753354318580,1.79167339,118410.0,118400.0,0.5296261]
[1753354321574,1.50897011,118410.0,118400.0,0.6096661]
[1753354321777,0.73023831,118410.0,118400.0,1.13519938]
[1753354321977,2.67693011,118410.0,118400.0,1.13519938]
[1753354322679,2.06713011,118410.0,118400.0,1.13519938]
[1753354322880,2.67693011,118410.0,118400.0,1.13519938]
[1753354324082,2.95963339,118410.0,118400.0,0.8524961]
[1753354324677,2.67693011,118410.0,118400.0,0.8524961]
[1753354325183,2.95963339,118410.0,118400.0,0.8524961]
[1753354326783,2.67693011,118410.0,118400.0,0.8524961]
[1753354326983,2.67693011,118410.0,118400.0,1.13519938]
[1753354327177,2.67693011,118410.0,118400.0,0.8524961]
[1753354328183,2.67693011,118410.0,118400.0,1.13519938]
[1753354328585,2.06713011,118410.0,118400.0,1.13519938]
[1753354328884,2.67685011,118410.0,118400.0,1.13519938]
[1753354329584,2.67685011,118410.0,118400.0,0.8524961]
[1753354330388,2.67681011,118410.0,118400.0,0.8524961]
[1753354330891,2.95951339,118410.0,118400.0,0.8524961]
[1753354331486,2.67681011,118410.0,118400.0,0.8524961]
[1753354332589,0.89905011,118410.0,118400.0,0.8524961]
[1753354332792,0.53381831,118410.0,118400.0,1.41790266]
[1753354332983,0.385,118410.0,118400.0,1.41790266]
[1753354333290,1.01315478,118410.0,118400.0,1.45790266]
[1753354333688,1.01315478,118410.0,118400.0,0.8924961]
[1753354333890,1.01315675,118410.0,118400.0,1.46519938]
[1753354334091,1.02315675,118410.0,118400.0,1.46519938]
[1753354334285,0.41351675,118410.0,118400.0,1.46519938]
[1753354334490,1.02315675,118410.0,118400.0,1.46519938]
[1753354334689,1.02315675,118410.0,118400.0,1.74790266]
[1753354335493,0.41351675,118410.0,118400.0,1.74790266]
[1753354335792,1.02311675,118410.0,118400.0,1.74990266]
[1753354336494,1.02311675,118410.0,118400.0,1.79547804]
[1753354337300,1.0046,118410.0,118400.0,1.46719938]
[1753354337497,1.00456,118410.0,118400.0,1.46719938]
[1753354338299,0.395,118410.0,118400.0,1.46719938]
[1753354338496,1.00452,118410.0,118400.0,1.1844961]
[1753354338797,1.00452,118410.0,118400.0,1.46719938]
[1753354338994,1.00452,118410.0,118400.0,1.5280032]
[1753354339194,1.00452,118410.0,118400.0,1.46719938]
[1753354339998,1.64822518,118410.0,118400.0,0.9744961]
[1753354340190,1.3655219,118410.0,118400.0,1.02003895]
[1753354340391,1.3655219,118410.0,118400.0,1.25719938]
[1753354340591,1.3655219,118410.0,118400.0,1.26995032]
[1753354341198,1.3655219,118410.0,118400.0,0.9734961]
[1753354341591,1.3655219,118410.0,118400.0,1.0190305]
[1753354342195,1.64822518,118410.0,118400.0,0.6951605]
[1753354342399,1.64822518,118410.0,118400.0,0.5751605]
[1753354342797,1.64822518,118410.0,118400.0,0.7772905]
[1753354342993,1.66638864,118410.0,118400.0,0.7842161]
[1753354343394,0.73738346,118410.0,118400.0,1.13519938]
[1753354343702,1.51563536,118410.0,118400.0,1.13519938]
[1753354343901,1.4974719,118410.0,118400.0,1.13519938]
[1753354344098,1.32866,118410.0,118400.0,1.18073378]
[1753354344303,1.4974719,118410.0,118400.0,1.18073378]
[1753354345599,1.32866,118410.0,118400.0,1.13519938]
[1753354346309,1.32866,118410.0,118400.0,1.18073378]
[1753354346701,1.32866,118410.0,118400.0,1.13519938]
[1753354347201,1.32866,118410.0,118400.0,1.18073378]
[1753354348402,0.73738591,118410.0,118400.0,1.13519938]
[1753354348608,1.34678591,118410.0,118400.0,1.13519938]
[1753354348910,1.34678591,118410.0,118400.0,0.8524961]
[1753354349206,1.34678591,118410.0,118400.0,1.13519938]
[1753354349509,1.51559781,118410.0,118400.0,1.13519938]
[1753354349716,0.90619781,118410.0,118400.0,1.13519938]
[1753354350013,1.34674591,118410.0,118400.0,1.13519938]
[1753354350307,1.51555781,118410.0,118400.0,1.13519938]
[1753354350508,0.73738591,118410.0,118400.0,1.13519938]
[1753354350710,1.34670591,118410.0,118400.0,1.13519938]
[1753354351012,1.51551781,118410.0,118400.0,1.13519938]
[1753354351309,0.90619781,118410.0,118400.0,1.13519938]
[1753354351509,1.34670591,118410.0,118400.0,1.13519938]
[1753354351709,1.4973519,118410.0,118400.0,1.18073378]
[1753354352303,1.32854,118410.0,118400.0,1.18073378]
[1753354352509,1.3285,118410.0,118400.0,1.18073378]
[1753354352703,1.4973119,118410.0,118400.0,1.18073378]
[1753354352909,0.97428,118410.0,118400.0,1.18073378]
[1753354353506,1.29374,118410.0,118400.0,1.18073378]
[1753354356109,1.21341,118410.0,118400.0,1.18073378]
[1753354356313,1.14675,118410.0,118400.0,1.18073378]
[1753354356807,1.21341,118410.0,118400.0,1.18073378]
[1753354357013,0.68446,118410.0,118400.0,1.18073378]
[1753354357207,0.025,118410.0,118400.0,1.46343706]
[1753354357513,0.31946,118430.0,118420.0,0.5228859]
[1753354357815,0.31946,118440.0,118430.0,0.4806734]
[1753354358002,1.27862,118440.0,118430.0,1.13417668]
[1753354358415,1.4473891,118440.0,118430.0,1.13417668]
[1753354359317,1.27862,118440.0,118430.0,1.13417668]
[1753354360619,1.27854,118440.0,118430.0,1.13417668]
[1753354362020,1.4473091,118440.0,118430.0,1.13417668]
[1753354362822,1.27854,118440.0,118430.0,1.13417668]
[1753354363316,1.4473091,118440.0,118430.0,0.8514734]
[1753354363516,1.4473091,118440.0,118430.0,1.13417668]
[1753354366522,1.73001238,118440.0,118430.0,0.8514734]
[1753354366818,1.73001238,118440.0,118430.0,0.5295834]
[1753354367022,2.01271566,118440.0,118430.0,0.5295834]
[1753354367321,0.4882434,118430.0,118420.0,0.31387877]
[1753354367521,1.51174668,118430.0,118420.0,0.29871197]
[1753354370322,2.12058668,118430.0,118420.0,0.29871197]
[1753354371225,2.12058668,118430.0,118420.0,0.21431407]
[1753354371429,1.51174668,118430.0,118420.0,0.21431407]
[1753354371614,2.13872876,118430.0,118420.0,0.1687916]
[1753354373018,0.27604,118420.0,118400.0,0.7361051]
[1753354373219,1.37973518,118410.0,118400.0,0.8220409]
[1753354373423,1.75791726,118410.0,118400.0,0.9681209]
[1753354373617,1.75791726,118410.0,118400.0,0.6073209]
[1753354374123,1.47521398,118410.0,118400.0,0.6073209]
[1753354377224,1.4570319,118410.0,118400.0,0.6073209]
[1753354377525,1.4752128,118410.0,118400.0,0.6073209]
[1753354377719,0.6976409,118410.0,118400.0,0.6073209]
[1753354377920,1.3063609,118410.0,118400.0,1.25082418]
[1753354378625,1.4751728,118410.0,118400.0,1.25082418]
[1753354380219,1.4751728,118410.0,118400.0,0.89002418]
[1753354380425,1.4751728,118410.0,118400.0,1.25082418]
[1753354381722,1.4569919,118410.0,118400.0,1.25082418]
[1753354382820,1.47517324,118410.0,118400.0,1.25082418]
[1753354383628,1.47517159,118410.0,118400.0,1.25082418]
[1753354383923,1.47517159,118410.0,118400.0,0.4488309]
[1753354383924,1.75787496,118410.0,118400.0,0.4488309]
[1753354384130,1.75787496,118410.0,118400.0,0.2532251]
[1753354384627,1.73969518,118410.0,118400.0,0.2532251]
[1753354385126,1.4569919,118410.0,118400.0,0.3774051]
[1753354386227,1.47517092,118410.0,118400.0,0.3774051]
[1753354386928,1.47730906,118410.0,118400.0,0.3774051]
[1753354387129,1.47730906,118410.0,118400.0,0.5053551]
[1753354387623,1.47730906,118410.0,118400.0,0.5737551]
[1753354391432,0.69977716,118410.0,118400.0,0.5737551]
[1753354391627,1.29003814,118410.0,118400.0,1.26278085]
[1753354392133,1.45885004,118410.0,118400.0,1.26278085]
[1753354392623,1.2879,118410.0,118400.0,1.26278085]
[1753354392818,0.31422,118420.0,118410.0,0.2542819]
[1753354393023,1.26262,118420.0,118410.0,1.19836765]
[1753354393826,1.4314176,118420.0,118410.0,1.19836765]
[1753354395332,1.43352281,118420.0,118410.0,1.19836765]
[1753354395728,0.82512281,118420.0,118410.0,1.19836765]
[1753354395928,1.43344281,118420.0,118410.0,1.19836765]
[1753354397133,0.82512281,118420.0,118410.0,1.19836765]
[1753354397333,1.43344281,118420.0,118410.0,1.15284518]
[1753354397832,1.43344281,118420.0,118410.0,0.8701419]
[1753354398232,1.43344281,118420.0,118410.0,1.15284518]
[1753354400236,1.26254,118420.0,118410.0,1.46284518]
[1753354400632,0.65422,118420.0,118410.0,1.46284518]
[1753354400932,0.94816,118420.0,118410.0,1.46284518]
[1753354401131,1.35323,118440.0,118430.0,0.2967334]
[1753354401435,2.63494641,118440.0,118430.0,0.77201668]
[1753354401633,2.46617731,118440.0,118430.0,0.77201668]
[1753354402034,2.46617731,118440.0,118430.0,1.13281668]
[1753354402536,2.63494641,118440.0,118430.0,1.14281668]
[1753354403032,2.61671153,118440.0,118430.0,1.14281668]
[1753354403233,2.63493994,118440.0,118430.0,1.14281668]
[1753354405231,2.63493994,118440.0,118430.0,0.08505]
[1753354405431,0.4830034,118430.0,118420.0,0.2531795]
[1753354405636,1.50473509,118430.0,118420.0,0.2531795]
[1753354406136,1.48650668,118430.0,118420.0,0.2531795]
[1753354407234,1.12570668,118430.0,118420.0,0.2531795]
[1753354407635,1.73366668,118430.0,118420.0,0.2531795]
[1753354408642,2.09446668,118430.0,118420.0,0.2531795]
[1753354410230,1.73366668,118430.0,118420.0,0.2531795]
[1753354410544,1.73362668,118430.0,118420.0,0.2531795]
[1753354411541,2.09442668,118430.0,118420.0,0.2531795]
[1753354412440,2.11264877,118430.0,118420.0,0.2531795]
[1753354413243,1.50472877,118430.0,118420.0,0.2531795]
[1753354413430,2.11256877,118430.0,118420.0,0.2531795]
[1753354414143,2.19696587,118430.0,118420.0,0.1687976]
[1753354414337,2.05393477,118430.0,118420.0,0.1687976]
[1753354414735,2.24006477,118430.0,118420.0,0.1687976]
[1753354415342,1.95736149,118430.0,118420.0,0.1687976]
[1753354415534,2.24006477,118430.0,118420.0,0.1687976]
[1753354416043,2.22184268,118430.0,118420.0,0.1687976]
[1753354416243,2.24007004,118430.0,118420.0,0.1687976]
[1753354417945,2.19787114,118430.0,118420.0,0.1687976]
[1753354423245,1.59003114,118430.0,118420.0,0.1687976]
[1753354423446,2.19759114,118430.0,118420.0,0.1687976]
[1753354424845,1.87264896,118430.0,118420.0,0.4796576]
[1753354425640,2.15535224,118430.0,118420.0,0.4796576]
[1753354426541,1.50563404,118430.0,118420.0,0.4796576]
[1753354426847,2.11307404,118430.0,118420.0,0.4796576]
[1753354427243,2.11307404,118430.0,118420.0,0.52523149]
[1753354430454,2.11307404,118430.0,118420.0,0.46050149]
[1753354431650,2.11307404,118430.0,118420.0,0.4796576]
[1753354431950,2.11307404,118430.0,118420.0,0.76236088]
[1753354431951,1.22293076,118430.0,118420.0,0.76236088]
[1753354432152,1.83021076,118430.0,118420.0,0.4796576]
[1753354432950,1.46933076,118430.0,118420.0,0.76236088]
[1753354433349,0.69334736,118430.0,118420.0,0.76236088]
[1753354433544,1.46933076,118430.0,118420.0,1.12316088]
[1753354433745,1.30050736,118430.0,118420.0,1.12316088]
[1753354434252,1.46929076,118430.0,118420.0,1.12316088]
[1753354435752,1.46925076,118430.0,118420.0,1.12316088]
[1753354436053,0.37822736,118430.0,118420.0,1.16873477]
[1753354436242,0.37822736,118430.0,118420.0,1.33761477]
[1753354436443,0.98530736,118430.0,118420.0,1.33761477]
[1753354436845,0.67530736,118430.0,118420.0,1.33761477]
[1753354437650,0.06822736,118430.0,118420.0,1.34093022]
[1753354437949,0.3092,118450.0,118440.0,0.2942791]
[1753354438151,1.2662,118450.0,118440.0,1.11757238]
[1753354439148,1.4349548,118450.0,118440.0,1.11757238]
[1753354439354,1.2662,118450.0,118440.0,1.11757238]
[1753354440854,1.4349548,118450.0,118440.0,1.11757238]
[1753354441154,1.4349548,118450.0,118440.0,0.8348691]
[1753354443655,1.4349548,118450.0,118440.0,0.4740691]
[1753354443955,1.4349548,118450.0,118440.0,0.8348691]
[1753354445054,1.2662,118450.0,118440.0,0.8348691]
[1753354445557,1.4349549,118450.0,118440.0,0.8348691]
[1753354447858,1.4349549,118450.0,118440.0,0.4740691]
[1753354448856,1.4349549,118450.0,118440.0,0.8348691]
[1753354449057,1.2662,118450.0,118440.0,0.8348691]
[1753354449555,1.2662,118450.0,118440.0,0.4740691]
[1753354449955,1.28425237,118450.0,118440.0,0.4740691]
[1753354450156,1.45300727,118450.0,118440.0,0.8348691]
[1753354450356,1.28425237,118450.0,118440.0,0.8348691]
[1753354450658,1.2662,118450.0,118440.0,0.8348691]
[1753354451251,1.2662,118450.0,118440.0,0.4740691]
[1753354451458,1.2662,118450.0,118440.0,0.8348691]
[1753354451857,1.4349549,118450.0,118440.0,0.8348691]
[1753354452458,1.2662,118450.0,118440.0,0.8348691]
[1753354452656,1.4349549,118450.0,118440.0,0.8348691]
[1753354452958,1.71765818,118450.0,118440.0,0.8348691]
[1753354453362,1.54890328,118450.0,118440.0,0.8348691]
[1753354453654,0.94190328,118450.0,118440.0,0.8348691]
[1753354453858,1.71705808,118450.0,118440.0,0.8348691]
[1753354454160,1.4343548,118450.0,118440.0,0.8348691]
[1753354454355,0.6592,118450.0,118440.0,0.8348691]
[1753354454549,1.4342748,118450.0,118440.0,0.8348691]
[1753354454962,1.26552,118450.0,118440.0,0.8348691]
[1753354455554,1.4342748,118450.0,118440.0,0.8348691]
[1753354455754,0.8279548,118450.0,118440.0,0.8348691]
[1753354456057,1.4342348,118450.0,118440.0,0.8348691]
[1753354457357,1.4342348,118450.0,118440.0,0.4740691]
[1753354457564,1.4342348,118450.0,118440.0,0.8348691]
[1753354458661,1.4342348,118450.0,118440.0,0.88044299]
[1753354459263,1.71693808,118450.0,118440.0,0.88044299]
[1753354460262,1.4342348,118450.0,118440.0,0.88044299]
[1753354462466,1.26548,118450.0,118440.0,0.88044299]
[1753354462966,1.4342349,118450.0,118440.0,0.88044299]
[1753354463463,1.26548,118450.0,118440.0,0.88044299]
[1753354464061,1.4342348,118450.0,118440.0,0.88044299]
[1753354464367,1.73485639,118450.0,118440.0,0.21434299]
[1753354465672,1.73485639,118450.0,118440.0,0.28566299]
[1753354467169,1.73485639,118450.0,118440.0,0.21434299]
[1753354467671,1.73487225,118450.0,118440.0,0.21434299]
[1753354469374,1.45216907,118450.0,118440.0,0.41027299]
[1753354469571,1.73487235,118450.0,118440.0,0.52314299]
[1753354469874,1.73487235,118450.0,118440.0,0.5230509]
[1753354471672,1.73487235,118450.0,118440.0,0.47747701]
[1753354478381,1.73487235,118450.0,118440.0,0.41484701]